Cogmind - Beta 16 @@@ ROGUE MODE // 2025.12.28 @ 17:35:40 Player: skilledspacepolice Result: Destroyed by IH-ABZ(R) with Subdweller Beam Cannon Performance ------------- Evolutions (0) 0 Regions Visited (3) 600 Robots Destroyed (13) 65 Value Destroyed (275) 275 Prototype IDs (0) 0 Alien Tech Used (0) 0 Bonus (0) 0 TOTAL SCORE: 940 Bonus ------- None Cogmind --------- Core Integrity 0/250 Matter 300/300 Energy 100/100 System Corruption 0% Temperature Cool (9) Movement Walking (120) Location -10/Subcaves Parts ------- > --- POWER (1) -------- (None) > --- PROPULSION (2) --- Aluminum Leg Aluminum Leg > --- UTILITY (2) ------ Small Storage Unit Visual Processing Unit > --- WEAPON (2) ------- Beam Cannon > --- INVENTORY (8) ---- Light Treads Light Treads Light Treads Hover Unit Hover Unit Targeting Computer Propulsion Shielding Peak State ------------ > --- POWER ------------ Light Ion Engine > --- PROPULSION ------- Hover Unit Hover Unit > --- UTILITY ---------- Small Storage Unit Visual Processing Unit > --- WEAPON ----------- Light EM Pulse Cannon Light EM Pulse Cannon > --- INVENTORY -------- Light Ion Engine Aluminum Leg Aluminum Leg Hover Unit Hover Unit Propulsion Shielding Light EM Pulse Cannon Light EM Pulse Cannon [Rating: 11] Favorites ----------- Power Light Ion Engine Engine Light Ion Engine Propulsion Light Treads Treads Light Treads Leg Aluminum Leg Hover Unit Hover Unit Utility Small Storage Unit Storage Small Storage Unit Processor Visual Processing Unit Weapon Light Assault Rifle Energy Cannon Light EM Pulse Cannon Ballistic Gun Light Assault Rifle Build | -11 -10 -10 -10 ------- Run | Yrd Mat Min Sub Slots Evolved . | . . . . Power . | . . . . Propulsion . | . . . . Utility . | . . . . Weapon . | . . . . Parts Attached 23 | 6 9 8 . Power 6 | 1 2 3 . Engine 6 | 1 2 3 . Core . | . . . . Reactor . | . . . . Propulsion 6 | 2 2 2 . Treads 2 | 2 . . . Leg 2 | . . 2 . Wheel . | . . . . Hover 2 | . 2 . . Flight . | . . . . Utility 2 | 1 1 . . Device . | . . . . Storage 1 | 1 . . . Processor 1 | . 1 . . Hackware . | . . . . Protection . | . . . . Artifact . | . . . . Weapon 9 | 2 4 3 . Energy Gun . | . . . . Energy Cannon 5 | . 2 3 . Ballistic Gun 4 | 2 2 . . Ballistic Cannon . | . . . . Launcher . | . . . . Special Weapon . | . . . . Impact Weapon . | . . . . Slashing Weapon . | . . . . Piercing Weapon . | . . . . Special Melee Weapon . | . . . . Unidentified Prototypes . | . . . . Parts Lost 9 | . 1 6 2 Power 4 | . . 3 1 Propulsion 1 | . 1 . . Utility . | . . . . Weapon 4 | . . 3 1 Highest Loss Streak 7 | . 1 7 2 To Critical Strikes . | . . . . Average Backups 4 | 2 4 5 7 Power . | 1 1 . . Propulsion 3 | 1 2 3 5 Utility . | . . 1 2 Weapon . | . . . . Tool/Special . | . . . . Unused Backups 10 | . 3 . 7 Power 2 | . 2 . . Propulsion 6 | . 1 . 5 Utility 2 | . . . 2 Weapon . | . . . . Tool/Special . | . . . . Average Slot Usage (%) 86 | . 89 81 100 Engine 13 | . 14 11 14 Treads 8 | . 16 . . Leg 11 | . . 20 28 Hover 5 | . 11 . . Storage 14 | . 14 14 14 Processor 9 | . 5 14 14 Energy Cannon 11 | . 1 19 28 Ballistic Gun 11 | . 24 . . Peak Build Rating 11 | 6 11 9 9 Average Rating 7 | 5 6 7 8 On Entrance 6 | . 6 10 9 Avg Prop Armor Cover (%) . | . . . . Naked Turns . | . . . . Heaviest Build 16 | 11 16 15 15 Greatest Support 40 | 40 40 20 20 Greatest Overweight (x) 2 | . 2 2 . Average Overweight (x) . | . . . . Largest Inventory Capacity 8 | 8 8 8 8 Average Capacity 7 | 7 8 8 8 Most Carried 8 | 5 8 8 7 Average Carried 4 | 2 4 5 7 Final Capacity 8 | 8 8 8 8 Final Carried 8 | 3 8 7 7 Class Distribution -------------------- 83% | Mutant 16% | Scavenger-Mutant Dominant Class ---------------- Mutant | -10/Materials Mutant | -10/Mines Mutant | -10/Subcaves Resources | -11 -10 -10 -10 ----------- Run | Yrd Mat Min Sub Matter Collected 521 | 207 249 65 . Remotely . | . . . . Salvage Created 320 | . 274 46 . Parts 27 | . 23 4 . Haulers Intercepted . | . . . . Recyclers Shooed . | . . . . Parts Field Recycled . | . . . . Retrieved Matter . | . . . . Parts Self-Destructed 3 | . . . 3 Prevented . | . . . . Parts Restored . | . . . . Kills | -11 -10 -10 -10 ------- Run | Yrd Mat Min Sub Combat Hostiles Destroyed 11 | . 8 3 . Guns 8 | . 8 . . Cannons 3 | . . 3 . Classes Destroyed 4 | . 4 . . Operator 1 | . 1 . . Watcher 1 | . 1 . . Swarmer 6 | . 3 3 . Grunt 5 | . 5 . . Best Kill Streak 3 | . 3 1 . Combat Bots Only 3 | . 3 1 . Max Kills in Single Turn 1 | . 1 1 . Gunslinging . | . . . . Exploded . | . . . . Melee . | . . . . Uniques/NPCs Destroyed . | . . . . Combat | -11 -10 -10 -10 -------- Run | Yrd Mat Min Sub Hostile Shots Fired 161 | . 79 76 6 Missed 37 | . 24 13 . Hits 124 | . 55 63 6 Projectile 124 | . 55 63 6 Critical Strikes 1 | . 1 . . Damage Taken 1266 | . 623 500 143 Core 269 | . 101 145 23 Absorbed by Shields . | . . . . Core Remaining (%) 100 | 100 . . . Volleys Fired 49 | . 34 14 1 Largest 2 | . 2 2 1 Hottest 112 | . 112 112 56 Shots Fired 84 | . 68 15 1 Gun 66 | . 66 . . Cannon 18 | . 2 15 1 Launcher . | . . . . Special . | . . . . Kinetic 66 | . 66 . . Thermal . | . . . . Explosive . | . . . . Electromagnetic 18 | . 2 15 1 Robot Hit Streak 4 | . 4 2 2 Robot Miss Streak 3 | . 3 2 . Penetration Max . | . . . . Secondary Targets 2 | . 2 . . Max Gunslinging Chain 1 | . 1 . . Shots Hit Robots 47 | . 37 9 1 Core Hits 21 | . 18 3 . Critical Kills . | . . . . Critical Parts Destroyed . | . . . . Critical Strikes . | . . . . Melee Attacks . | . . . . Impact . | . . . . Slashing . | . . . . Piercing . | . . . . Sneak Attacks . | . . . . Combat Hostiles . | . . . . Follow-up Attacks . | . . . . Damage Inflicted 596 | . 404 173 19 Guns 358 | . 358 . . Cannons 238 | . 46 173 19 Explosions . | . . . . Melee . | . . . . Ramming . | . . . . Kinetic 358 | . 358 . . Thermal . | . . . . Explosive . | . . . . Electromagnetic 238 | . 46 173 19 Impact . | . . . . Slashing . | . . . . Piercing . | . . . . Highest Corruption . | . . . . Average Corruption . | . . . . Corruption Purged . | . . . . Corruption Blocked . | . . . . Overload Shots . | . . . . Overflow Damage . | . . . . Projectiles . | . . . . Explosions . | . . . . Melee . | . . . . Knockbacks . | . . . . Impact . | . . . . Kinetic . | . . . . Secondary . | . . . . Self-Inflicted Damage . | . . . . Shots . | . . . . Rammed . | . . . . Targets Rammed . | . . . . Kicked . | . . . . Crushed . | . . . . Highest Temperature 63 | . 63 47 3 Average Temperature 14 | . 14 14 3 Received Heat Transfer 375 | . 336 . 39 Siege Activations . | . . . . Martial Activations . | . . . . Shielding Activations . | . . . . Robots Disrupted . | . . . . Combat Hostiles . | . . . . Robots Corrupted . | . . . . Combat Hostiles . | . . . . Parts Fried 1 | . . 1 . Impact Corruptions . | . . . . Robots Melted . | . . . . Combat Hostiles . | . . . . Parts Melted . | . . . . Heat Transferred . | . . . . Parts Sabotaged . | . . . . Parts Stolen . | . . . . Parts Stripped . | . . . . Power Chain Reactions . | . . . . Alert | -11 -10 -10 -10 ------- Run | Yrd Mat Min Sub Maximum Alert Level . | . . . . Low Security (%) 100 | 100 100 100 . Level 1 . | . . . . Level 2 . | . . . . Level 3 . | . . . . Level 4 . | . . . . Level 5 . | . . . . High Security . | . . . . Max Security . | . . . . Peak Influence 132 | . 132 35 . Initial 25 | . . 25 . Average 30 | . 61 4 . Influence Increases 321 | . 251 70 . Destroy 0b10 Robot/C 220 | . 160 60 . Destroy 0b10 Robot/NC 10 | . 10 . . Destroy Leader 42 | . 32 10 . Trap Triggered on 0b10 10 | . 10 . . Successful Hack 8 | . 8 . . Destroy Structure 1 | . 1 . . Lose Combat Pursuer 30 | . 30 . . Influence Decreases 321 | . 186 135 . Entered New Map 40 | . . 40 . Time Decay 221 | . 176 45 . Lost Part 60 | . 10 50 . Squads Dispatched 3 | . 3 . . Investigation 2 | . 2 . . Extermination . | . . . . Reinforcement 1 | . 1 . . Assault . | . . . . Garrison . | . . . . Intercept . | . . . . Searches Triggered . | . . . . Construction Impeded . | . . . . Haulers Reinforced . | . . . . Active Scanning Responses . | . . . . Cargo Convoy Interrupts . | . . . . Stealth | -11 -10 -10 -10 --------- Run | Yrd Mat Min Sub Distress Signals 2 | . 2 . . Communications Jammed . | . . . . Distress Signals . | . . . . Times Spotted 27 | . 18 6 3 Peak Tracking Total 5 | . 5 3 3 Tactical Retreats 2 | . 2 . . Traps | -11 -10 -10 -10 ------- Run | Yrd Mat Min Sub Traps Triggered 1 | . 1 . . Indirectly . | . . . . Trap Hack Attempts . | . . . . Triggered . | . . . . Disarmed . | . . . . Reprogrammed 2 | . 2 . . Reused 1 | . 1 . . Traps Extracted . | . . . . Installed . | . . . . Triggered 1 | . 1 . . Machines | -11 -10 -10 -10 ---------- Run | Yrd Mat Min Sub Machines Disabled . | . . . . Max in Single Turn . | . . . . Machines Repaired . | . . . . Machines Dismantled . | . . . . Machines Sabotaged . | . . . . Overloaded Fab Kills . | . . . . Hacking | -11 -10 -10 -10 --------- Run | Yrd Mat Min Sub Machines Accessed 4 | . 4 . . Terminals 2 | . 2 . . Fabricators . | . . . . Repair Stations . | . . . . Recycling Units 2 | . 2 . . Scanalyzers . | . . . . Garrison Access . | . . . . Total Hacks 11 | . 11 . . Successful 10 | . 10 . . Failed 1 | . 1 . . Catastrophic . | . . . . Database Lockouts . | . . . . Manual . | . . . . Terminals 6 | . 6 . . Fabricators . | . . . . Repair Stations . | . . . . Recycling Units 5 | . 5 . . Scanalyzers . | . . . . Garrison Access . | . . . . Terminal Hacks 6 | . 6 . . Record 2 | . 2 . . Locate Traps 2 | . 2 . . Reprogram Traps 1 | . 1 . . Investigation Status 1 | . 1 . . Fabricator Hacks . | . . . . Repair Station Hacks . | . . . . Recycling Unit Hacks 4 | . 4 . . Recycle Component 1 | . 1 . . Process 1 | . 1 . . Report Inventory 2 | . 2 . . Scanalyzer . | . . . . Garrison Access Hacks . | . . . . Unauthorized Hacks . | . . . . Terminals . | . . . . Fabricators . | . . . . Repair Stations . | . . . . Recycling Units . | . . . . Scanalyzers . | . . . . Garrison Access . | . . . . Data Cores Recovered . | . . . . Used . | . . . . Hacking Detections 3 | . 3 . . Full Trace Events 3 | . 3 . . Feedback Events . | . . . . Feedback Blocked . | . . . . Robot Schematics Acquired . | . . . . Robots Built . | . . . . Authchips . | . . . . Time . | . . . . Total Robot Build Rating . | . . . . Part Schematics Acquired . | . . . . Parts Built . | . . . . Authchips . | . . . . Time . | . . . . Total Part Build Rating . | . . . . Part Studies Acquired . | . . . . Parts Repaired . | . . . . Time . | . . . . Parts Recycled 1 | . 1 . . Recycled Matter 27 | . 27 . . Retrieved Matter . | . . . . Retrieved Components . | . . . . Parts Scanalyzed . | . . . . Part Schematics Acquired . | . . . . Parts Damaged . | . . . . Bothacking | -11 -10 -10 -10 ------------ Run | Yrd Mat Min Sub Used RIF Installer . | . . . . Robots Hacked . | . . . . Non-combat . | . . . . Combat . | . . . . Robot Hacks Applied . | . . . . Relay Couplers Released . | . . . . Fabnet Peak Effective % . | . . . . Robots Rewired . | . . . . Allies Hacked . | . . . . Hacks Repelled . | . . . . Allies | -11 -10 -10 -10 -------- Run | Yrd Mat Min Sub Total Allies . | . . . . Largest Group . | . . . . Highest-Rated Group . | . . . . Highest-Rated Ally . | . . . . Total Orders . | . . . . Ally Attacks . | . . . . Total Damage . | . . . . Kills . | . . . . Allies Corrupted . | . . . . Allies Melted . | . . . . Intel | -11 -10 -10 -10 ------- Run | Yrd Mat Min Sub Active Infowar (turns) 603 | . 159 363 81 Optics 603 | . 159 363 81 Robot Analysis Total . | . . . . Derelict Logs Recovered 3 | . . 2 1 Drone Launches . | . . . . Drone Recoveries . | . . . . Exploration | -11 -10 -10 -10 ------------- Run | Yrd Mat Min Sub Turns Passed 986 | 122 420 363 81 Spaces Moved 630 | 73 276 215 66 Core 14 | 8 . 6 . Treads 177 | 65 112 . . Legs 275 | . . 209 66 Wheels . | . . . . Hover 164 | . 164 . . Flight . | . . . . Fastest Speed 50 | 50 56 120 120 Average Speed 116 | 147 104 120 120 Slowest Speed 180 | 160 180 150 120 Overloaded Moves . | . . . . Propulsion Burnouts . | . . . . Robots Hopped . | . . . . Potential Cave-ins . | . . . . Cave-ins Triggered . | . . . . Exploration Rate (%) 26 | 5 48 44 8 Regions Visited 3 Branch Regions 2 Pre-discovered Areas 1 | . . . 1 Known Exits Taken . | . . . . Unknown Exits Taken 3 | 1 1 1 . Scrap Searched . | . . . . Spaces Dug . | . . . . Terrain Destroyed . | . . . . Melee . | . . . . Projectile . | . . . . AOE . | . . . . Terrain Rammed . | . . . . Walls Destroyed . | . . . . Machines Disabled . | . . . . Actions | -11 -10 -10 -10 --------- Run | Yrd Mat Min Sub Total 808 | 87 351 303 67 Wait 66 | . 7 59 . Move 627 | 72 275 214 66 Hop . | . . . . Pick Up 32 | 9 16 7 . Fast Attach 1 | . 1 . . Attach 19 | 6 5 8 . Detach . | . . . . Swap 3 | . 3 . . Drop 11 | . 10 1 . Fire 49 | . 34 14 1 Melee . | . . . . Ram . | . . . . Kick . | . . . . Crush . | . . . . Escape Stasis . | . . . . Rewire . | . . . . Trap . | . . . . Miscellaneous . | . . . . Route ------- -11/Scrapyard -10/Materials (discovered 2 exits: [*Mat] / *Min) -10/Mines -10/Subcaves History --------- Turn | Location | Event 15 | -11/Scrapyard | Discovered new exit (range 15) 123 | -11/Scrapyard | Entered Materials 318 | -10/Materials | Build established: Mutant 466 | -10/Materials | Discovered new exit (range 18) 482 | -10/Materials | Discovered new exit (range 9) 543 | -10/Materials | Entered Mines 557 | -10/Mines | Core integrity fell below 50% 591 | -10/Mines | Core integrity fell below 20% 632 | -10/Mines | Lost 7 parts (3p1n3w) 747 | -10/Mines | Joined a pair of Derelicts in attacking an 0b10 outpost 812 | -10/Mines | Learned Materials garrison access intel 819 | -10/Mines | Learned Materials stockpile data 894 | -10/Mines | Discovered new exit (range 12) 906 | -10/Mines | Entered Subcaves 956 | -10/Subcaves | Learned location of Mines (-9) 982 | -10/Subcaves | A Subdweller sparked back to life 982 | -10/Subcaves | A Subdweller sparked back to life 982 | -10/Subcaves | A Subdweller sparked back to life 987 | -10/Subcaves | Destroyed by IH-ABZ(R) with Subdweller Beam Cannon Last Messages --------------- T-07 Excavator is excavating. Connecting with Terminal... Current location identified: Mines EXIT=FOUND T-07 Excavator is excavating. LOCATION=UNKNOWN AMBIENT_HEAT=-10 GOAL=ESCAPE Acquired derelict log, extracted data. World map updated: -9/Mines. TD-ZSX(R) creaks and sparks as it begins to move. IH-ABZ(R) creaks and sparks as it begins to move. NK-D0C(R) creaks and sparks as it begins to move. Lgt. EM Pulse Cannon destroyed. TD-ZSX(R) affixes Scrap Shield Fragment to Scrap Shield. Lgt. Ion Engine destroyed. Map ----- +----------------------------------------------------+ | ?????????????????????????????????????????? ? ##??? | | ?????????????????????????????????????????? ? ##?? | | ?????????????????????????????????????????? "" ??? | | ??????????????????????? ####?????????????# " " ??? | | ???????????????????????? #????????????#"" ??? | | ????????????????????????? ?????????????" ???? | | ?????????????????????????## ###??????????" ???? | | ?????????????????????????# # ####??????# #???? | | ?????????????????????????# ####???# ???? | | ??????????????????????????# ##??# ##??? | | ??????????????????????????# #??# #?## | | ???????????????????????????# ## #### #### | | ??????????????????????????## ## # # | | ?????????????????????????## ## | | ????????????????????????## | | ????????????????????????# | | ?????????????????????# ## | | ?????????????????????# ### ### | | ?????????????????????# #??# ##### ## | | ?????????????????????## ## #### ######## | | ???????????????????????## ## # #### #### | | ?????????????????????### #### ## #?? | | ?????????????????????# #??# ### ##?? | | ?????????????????????# #??# ## ##??? | | ?????????????????##### #?#### ## ###???? | | ?????????????????#&" # @ ### ### #?????? | | ?????????????????#< ## ##?## "#?????? | | ?????????????????# R ##???# ##?????? | | ?????????????????# R ###????# ##??????? | | ????????????????#